[Event "GrandPrix_29.05"]
[Site "Chess.com"]
[Date "2020.05.29"]
[Round "3"]
[White "2346PL"]
[Black "GrishaTheChamp"]
[Result "0-1"]
[WhiteElo "2064"]
[BlackElo "2213"]
[TimeControl "600+2"]
[EndTime "10:24:58 PDT"]
[Termination "GrishaTheChamp won by resignation"]

1. d4 {[%clk 0:10:01.9]} 1... Nf6 {[%clk 0:09:59.4]} 2. Bg5 {[%clk 0:10:02.6]}
2... Ne4 {[%clk 0:09:52.5]} 3. Bf4 {[%clk 0:10:03.3]} 3... c5 {[%clk 0:09:53.2]}
4. dxc5 {[%clk 0:09:59.9]} 4... Nxc5 {[%clk 0:09:52.4]} 5. Nc3 {[%clk
0:09:58.1]} 5... Nc6 {[%clk 0:09:50.7]} 6. e4 {[%clk 0:09:58.1]} 6... d6 {[%clk
0:09:45.8]} 7. Nf3 {[%clk 0:09:56.7]} 7... g6 {[%clk 0:09:46.4]} 8. e5 {[%clk
0:09:43.7]} 8... Ne6 {[%clk 0:09:40.6]} 9. Bg3 {[%clk 0:09:42.2]} 9... dxe5
{[%clk 0:09:33.7]} 10. Qxd8+ {[%clk 0:09:41.8]} 10... Nexd8 {[%clk 0:09:21.1]}
11. Nxe5 {[%clk 0:09:27.7]} 11... Nxe5 {[%clk 0:09:13.4]} 12. Bxe5 {[%clk
0:09:26.4]} 12... f6 {[%clk 0:09:14.3]} 13. Bc7 {[%clk 0:08:52.3]} 13... Ne6
{[%clk 0:09:00.7]} 14. Bg3 {[%clk 0:08:44.4]} 14... Bd7 {[%clk 0:08:54.6]} 15.
O-O-O {[%clk 0:08:40]} 15... Bh6+ {[%clk 0:08:54.5]} 16. Kb1 {[%clk 0:08:40.5]}
16... Bc6 {[%clk 0:08:47.4]} 17. Bc4 {[%clk 0:07:58.4]} 17... Nf4 {[%clk
0:08:28.7]} 18. Bxf4 {[%clk 0:07:53.8]} 18... Bxf4 {[%clk 0:08:30.6]} 19. Nd5
{[%clk 0:07:43.5]} 19... Bxd5 {[%clk 0:07:40.9]} 20. Rxd5 {[%clk 0:07:13.5]}
20... Rd8 {[%clk 0:07:27.2]} 21. g3 {[%clk 0:06:45.9]} 21... Bc7 {[%clk
0:07:17]} 22. Rhd1 {[%clk 0:06:22.1]} 22... Rxd5 {[%clk 0:07:12.6]} 23. Bxd5
{[%clk 0:06:22.3]} 23... b6 {[%clk 0:07:00.3]} 24. Bc6+ {[%clk 0:05:26.3]} 24...
Kf7 {[%clk 0:06:58.6]} 25. Rd7 {[%clk 0:05:26.8]} 25... Rd8 {[%clk 0:06:16.6]}
26. Bd5+ {[%clk 0:05:26]} 26... Ke8 {[%clk 0:06:17.6]} 27. Rxc7 {[%clk
0:05:08.4]} 27... Rxd5 {[%clk 0:06:17.7]} 28. Kc1 {[%clk 0:05:07.4]} 28... Rd7
{[%clk 0:06:19.1]} 29. Rc8+ {[%clk 0:04:50.9]} 29... Kf7 {[%clk 0:06:18.4]} 30.
a4 {[%clk 0:04:21.7]} 30... e5 {[%clk 0:06:17.1]} 31. b4 {[%clk 0:04:09]} 31...
e4 {[%clk 0:06:14]} 32. Rc6 {[%clk 0:03:07.8]} 32... f5 {[%clk 0:06:01.2]} 33.
h4 {[%clk 0:03:03.5]} 33... Ke7 {[%clk 0:04:00.3]} 34. h5 {[%clk 0:02:18.5]}
34... Rd6 {[%clk 0:03:57.7]} 35. Rc7+ {[%clk 0:02:17.2]} 35... Rd7 {[%clk
0:03:57.4]} 36. Rxd7+ {[%clk 0:02:14.6]} 36... Kxd7 {[%clk 0:03:59.3]} 37. hxg6
{[%clk 0:02:12.4]} 37... hxg6 {[%clk 0:03:59.1]} 38. Kd2 {[%clk 0:02:13.2]}
38... Kd6 {[%clk 0:03:59.4]} 39. c4 {[%clk 0:02:08.2]} 39... Ke5 {[%clk
0:03:49.7]} 40. Kc3 {[%clk 0:01:54.1]} 40... g5 {[%clk 0:03:48.3]} 41. b5 {[%clk
0:01:24.9]} 41... f4 {[%clk 0:03:36.7]} 42. gxf4+ {[%clk 0:01:09.7]} 42... gxf4
{[%clk 0:03:35.8]} 43. c5 {[%clk 0:00:17.5]} 43... bxc5 {[%clk 0:03:23.8]} 44.
a5 {[%clk 0:00:18.7]} 44... Kd6 {[%clk 0:03:24.5]} 45. Kc4 {[%clk 0:00:16.1]}
45... Kc7 {[%clk 0:03:11.2]} 46. Kxc5 {[%clk 0:00:04.1]} 46... e3 {[%clk
0:03:11.1]} 47. fxe3 {[%clk 0:00:03.6]} 47... fxe3 {[%clk 0:03:11.9]} 0-1

[Event "GrandPrix_29.05"]
[Site "Chess.com"]
[Date "2020.05.29"]
[Round "3"]
[White "PresidenteMNE"]
[Black "Andrjywa"]
[Result "1-0"]
[WhiteElo "2466"]
[BlackElo "2062"]
[TimeControl "600+2"]
[EndTime "10:24:59 PDT"]
[Termination "PresidenteMNE won by resignation"]

1. d4 {[%clk 0:10:01.9]} 1... Nf6 {[%clk 0:10:00.4]} 2. Bg5 {[%clk 0:10:02.2]}
2... d5 {[%clk 0:09:57.5]} 3. e3 {[%clk 0:09:57.3]} 3... Ne4 {[%clk 0:09:55.9]}
4. Bf4 {[%clk 0:09:57.2]} 4... g5 {[%clk 0:09:55.3]} 5. Be5 {[%clk 0:09:54]}
5... Rg8 {[%clk 0:09:45.7]} 6. c4 {[%clk 0:09:43.4]} 6... e6 {[%clk 0:09:25.1]}
7. Nc3 {[%clk 0:09:25.8]} 7... Bb4 {[%clk 0:09:03]} 8. Rc1 {[%clk 0:08:37.1]}
8... Nd7 {[%clk 0:08:33.3]} 9. Bg3 {[%clk 0:08:18.6]} 9... Ndf6 {[%clk
0:07:45.4]} 10. Bd3 {[%clk 0:08:13.7]} 10... Bxc3+ {[%clk 0:06:59.7]} 11. bxc3
{[%clk 0:08:12.8]} 11... Nxg3 {[%clk 0:06:49.1]} 12. hxg3 {[%clk 0:08:12.1]}
12... dxc4 {[%clk 0:06:44]} 13. Bxc4 {[%clk 0:08:03.5]} 13... Bd7 {[%clk
0:06:45.3]} 14. Nf3 {[%clk 0:07:53.1]} 14... Bc6 {[%clk 0:06:42.5]} 15. Ne5
{[%clk 0:07:53.6]} 15... Bxg2 {[%clk 0:06:35.8]} 16. Rh6 {[%clk 0:05:56.8]}
16... Bd5 {[%clk 0:06:23.7]} 17. Bxd5 {[%clk 0:05:40.1]} 17... Nxd5 {[%clk
0:05:32.2]} 18. c4 {[%clk 0:05:00.1]} 18... Nb6 {[%clk 0:04:12.4]} 19. Rxh7
{[%clk 0:04:38.8]} 19... Rf8 {[%clk 0:04:05]} 20. Qh5 {[%clk 0:04:35.8]} 20...
Qf6 {[%clk 0:03:27.5]} 21. c5 {[%clk 0:03:30.8]} 21... Nd5 {[%clk 0:03:22.6]}
22. c6 {[%clk 0:03:31.1]} 22... bxc6 {[%clk 0:03:14.8]} 23. Rh6 {[%clk 0:02:29]}
23... Qe7 {[%clk 0:02:49.9]} 24. Nxc6 {[%clk 0:02:29.5]} 24... Qa3 {[%clk
0:02:39.8]} 25. Rc2 {[%clk 0:01:26.1]} 25... Kd7 {[%clk 0:01:53.1]} 26. Rh7
{[%clk 0:01:09.8]} 26... Ke8 {[%clk 0:01:05.7]} 27. Qxg5 {[%clk 0:01:08.7]}
27... Qd3 {[%clk 0:01:06.5]} 28. Rxf7 {[%clk 0:00:53.1]} 28... Kxf7 {[%clk
0:01:05.9]} 29. Ne5+ {[%clk 0:00:53.7]} 29... Ke8 {[%clk 0:01:04.3]} 30. Nxd3
{[%clk 0:00:53.4]} 1-0

[Event "GrandPrix_29.05"]
[Site "Chess.com"]
[Date "2020.05.29"]
[Round "3"]
[White "Zakaryan_David"]
[Black "DaggiGretarsson"]
[Result "0-1"]
[WhiteElo "1263"]
[BlackElo "2190"]
[TimeControl "600+2"]
[EndTime "10:25:01 PDT"]
[Termination "DaggiGretarsson won by resignation"]

1. d4 {[%clk 0:09:58.6]} 1... g6 {[%clk 0:09:59.6]} 2. c4 {[%clk 0:09:59.1]}
2... Bg7 {[%clk 0:10:00.7]} 3. e4 {[%clk 0:09:58.1]} 3... e6 {[%clk 0:10:00.9]}
4. Nc3 {[%clk 0:09:57.2]} 4... Ne7 {[%clk 0:10:01.7]} 5. f4 {[%clk 0:09:55.4]}
5... d5 {[%clk 0:09:44.3]} 6. e5 {[%clk 0:09:50]} 6... b6 {[%clk 0:08:14.2]} 7.
Nf3 {[%clk 0:09:47]} 7... Bb7 {[%clk 0:07:51.7]} 8. cxd5 {[%clk 0:09:43.5]} 8...
Nxd5 {[%clk 0:07:49.3]} 9. Bb5+ {[%clk 0:09:44.5]} 9... Nd7 {[%clk 0:07:41.7]}
10. O-O {[%clk 0:09:45.7]} 10... O-O {[%clk 0:07:38.4]} 11. Nxd5 {[%clk
0:09:44.2]} 11... Bxd5 {[%clk 0:07:38.7]} 12. Be3 {[%clk 0:09:45.8]} 12... c6
{[%clk 0:07:19.3]} 13. Be2 {[%clk 0:09:44.3]} 13... Qe7 {[%clk 0:07:17.1]} 14.
Qa4 {[%clk 0:09:39.8]} 14... a5 {[%clk 0:07:10.9]} 15. a3 {[%clk 0:09:32.4]}
15... Rfc8 {[%clk 0:06:12.4]} 16. Rac1 {[%clk 0:09:27]} 16... Bf8 {[%clk
0:06:07.6]} 17. Rfd1 {[%clk 0:09:19]} 17... c5 {[%clk 0:05:51.3]} 18. h3 {[%clk
0:08:21.6]} 18... c4 {[%clk 0:04:38.5]} 19. Bxc4 {[%clk 0:07:51.9]} 19... b5
{[%clk 0:03:20.3]} 20. Bxb5 {[%clk 0:06:31.2]} 20... Nb6 {[%clk 0:03:17.7]} 21.
Rxc8 {[%clk 0:06:32.2]} 21... Nxa4 {[%clk 0:03:18.4]} 22. Rxa8 {[%clk
0:06:30.8]} 22... Bxa8 {[%clk 0:03:19]} 23. Bxa4 {[%clk 0:06:31.6]} 23... Bxf3
{[%clk 0:02:03.8]} 24. gxf3 {[%clk 0:06:33.5]} 24... Qb7 {[%clk 0:02:05]} 25.
Kf2 {[%clk 0:05:25.8]} 25... Qxb2+ {[%clk 0:02:04.2]} 26. Rd2 {[%clk 0:05:27.1]}
26... Qxa3 {[%clk 0:02:03.7]} 27. Bc6 {[%clk 0:05:28.5]} 27... Bb4 {[%clk
0:02:01.5]} 28. Rc2 {[%clk 0:05:27.6]} 28... Qb3 {[%clk 0:01:58.8]} 29. Be4
{[%clk 0:05:28.5]} 29... Bc3 {[%clk 0:01:54.4]} 30. Ke2 {[%clk 0:05:20.1]} 30...
a4 {[%clk 0:01:52.9]} 31. Kd3 {[%clk 0:05:15.7]} 31... Bb4+ {[%clk 0:01:10.1]}
32. Ke2 {[%clk 0:05:15.4]} 32... Bc3 {[%clk 0:01:10.5]} 33. Kd3 {[%clk
0:05:15.6]} 33... a3 {[%clk 0:00:45.6]} 34. Rxc3 {[%clk 0:05:15.2]} 34... Qd1+
{[%clk 0:00:46.2]} 35. Bd2 {[%clk 0:04:18.7]} 35... a2 {[%clk 0:00:45.8]} 36.
Rc1 {[%clk 0:04:07.3]} 36... Qxc1 {[%clk 0:00:39.8]} 37. Bxc1 {[%clk 0:04:09.2]}
37... a1=Q {[%clk 0:00:40.3]} 38. Be3 {[%clk 0:04:10.6]} 38... Qh1 {[%clk
0:00:38.8]} 39. d5 {[%clk 0:04:11.4]} 39... exd5 {[%clk 0:00:37.8]} 40. Bxd5
{[%clk 0:04:12.2]} 40... Qxh3 {[%clk 0:00:38.8]} 41. Kc4 {[%clk 0:04:02.8]}
41... Qc8+ {[%clk 0:00:37]} 42. Kd4 {[%clk 0:04:02.5]} 42... h5 {[%clk
0:00:33.4]} 43. Bf2 {[%clk 0:04:02.1]} 43... Qd8 {[%clk 0:00:28.7]} 44. Ke4
{[%clk 0:04:00.1]} 44... Qe7 {[%clk 0:00:24.6]} 45. f5 {[%clk 0:03:56.8]} 45...
Qb4+ {[%clk 0:00:23.5]} 46. Kd3 {[%clk 0:03:47.6]} 46... gxf5 {[%clk 0:00:18.1]}
47. e6 {[%clk 0:03:48.5]} 47... Qb5+ {[%clk 0:00:12.5]} 48. Bc4 {[%clk
0:03:46.9]} 48... Qb1+ {[%clk 0:00:13.3]} 49. Kc3 {[%clk 0:03:35.5]} 49... Qc1+
{[%clk 0:00:10.8]} 50. Kb3 {[%clk 0:03:34.1]} 50... Qd1+ {[%clk 0:00:11.5]} 51.
Kb4 {[%clk 0:03:32.4]} 51... Qd2+ {[%clk 0:00:11.8]} 52. Kb5 {[%clk 0:03:33.2]}
52... Qxf2 {[%clk 0:00:12.6]} 53. exf7+ {[%clk 0:03:34.2]} 53... Kf8 {[%clk
0:00:13.3]} 0-1

[Event "GrandPrix_29.05"]
[Site "Chess.com"]
[Date "2020.05.29"]
[Round "3"]
[White "faraone99"]
[Black "Lavrov_Maxim"]
[Result "0-1"]
[WhiteElo "2084"]
[BlackElo "2343"]
[TimeControl "600+2"]
[EndTime "10:25:05 PDT"]
[Termination "Lavrov_Maxim won by resignation"]

1. e4 {[%clk 0:10:01.9]} 1... e5 {[%clk 0:09:59.8]} 2. Nf3 {[%clk 0:10:02.8]}
2... Nc6 {[%clk 0:09:59]} 3. Bb5 {[%clk 0:10:03.2]} 3... a6 {[%clk 0:09:58.9]}
4. Ba4 {[%clk 0:10:04]} 4... Nf6 {[%clk 0:09:59.3]} 5. O-O {[%clk 0:10:04.6]}
5... Be7 {[%clk 0:09:58.8]} 6. Re1 {[%clk 0:10:04.7]} 6... b5 {[%clk 0:09:59.5]}
7. Bb3 {[%clk 0:10:05.3]} 7... O-O {[%clk 0:09:57.1]} 8. h3 {[%clk 0:10:05.4]}
8... d6 {[%clk 0:09:55.9]} 9. c3 {[%clk 0:10:06]} 9... Na5 {[%clk 0:09:54.2]}
10. Bc2 {[%clk 0:10:06.7]} 10... c5 {[%clk 0:09:55.5]} 11. d4 {[%clk 0:10:07.6]}
11... Qc7 {[%clk 0:09:55.4]} 12. d5 {[%clk 0:10:07.3]} 12... c4 {[%clk 0:09:53]}
13. Nbd2 {[%clk 0:10:07.7]} 13... Re8 {[%clk 0:09:47]} 14. Nf1 {[%clk
0:10:08.1]} 14... Nb7 {[%clk 0:09:35.3]} 15. Ng3 {[%clk 0:10:08.3]} 15... Nc5
{[%clk 0:09:36.2]} 16. Nh2 {[%clk 0:09:34.3]} 16... a5 {[%clk 0:09:12.4]} 17.
Ng4 {[%clk 0:09:04.8]} 17... Nxg4 {[%clk 0:08:48.1]} 18. hxg4 {[%clk 0:09:05.5]}
18... b4 {[%clk 0:08:48.8]} 19. Be3 {[%clk 0:08:09.5]} 19... Rb8 {[%clk
0:08:29.6]} 20. Qf3 {[%clk 0:06:55.2]} 20... bxc3 {[%clk 0:08:00.7]} 21. bxc3
{[%clk 0:06:55]} 21... Rb2 {[%clk 0:07:59.9]} 22. Re2 {[%clk 0:06:43.3]} 22...
g6 {[%clk 0:06:38.3]} 23. Bc1 {[%clk 0:06:36.6]} 23... Rb6 {[%clk 0:06:23.3]}
24. Be3 {[%clk 0:06:36.8]} 24... Bd7 {[%clk 0:06:13.5]} 25. Nf5 {[%clk
0:04:30.1]} 25... gxf5 {[%clk 0:05:45.7]} 26. gxf5 {[%clk 0:04:32]} 26... Bf6
{[%clk 0:05:21]} 27. g4 {[%clk 0:04:26.8]} 27... Qd8 {[%clk 0:05:12.9]} 28. Kg2
{[%clk 0:04:20.4]} 28... Nd3 {[%clk 0:04:11.4]} 29. Rh1 {[%clk 0:04:18]} 29...
Nf4+ {[%clk 0:03:54.2]} 30. Bxf4 {[%clk 0:04:09.8]} 30... exf4 {[%clk
0:03:55.2]} 31. Qh3 {[%clk 0:04:10.8]} 31... Kf8 {[%clk 0:03:12.9]} 32. Qxh7
{[%clk 0:04:05.8]} 32... Ke7 {[%clk 0:03:07.3]} 33. Qh6 {[%clk 0:02:32.5]} 33...
Rh8 {[%clk 0:02:32.7]} 34. Qxf4 {[%clk 0:02:32.3]} 34... Rxh1 {[%clk 0:02:32.1]}
35. Kxh1 {[%clk 0:02:33.3]} 35... Qh8+ {[%clk 0:02:31.2]} 36. Kg2 {[%clk
0:02:34.3]} 36... Be5 {[%clk 0:02:21.9]} 37. Qg5+ {[%clk 0:02:35.1]} 37... f6
{[%clk 0:02:17.5]} 38. Qh5 {[%clk 0:02:07.3]} 38... Qxh5 {[%clk 0:01:56.3]} 39.
gxh5 {[%clk 0:02:09.2]} 39... Be8 {[%clk 0:01:57.2]} 40. h6 {[%clk 0:02:07.2]}
40... Bh5 {[%clk 0:01:44.4]} 41. Re3 {[%clk 0:02:04.6]} 41... Bg4 {[%clk
0:01:38.4]} 42. h7 {[%clk 0:01:54]} 42... Rb8 {[%clk 0:01:37.4]} 43. Ba4 {[%clk
0:01:47]} 43... Rh8 {[%clk 0:01:34.4]} 44. Bb5 {[%clk 0:01:47]} 44... Rxh7
{[%clk 0:01:29.4]} 45. Bxc4 {[%clk 0:01:47.7]} 45... Rh2+ {[%clk 0:01:26.8]} 46.
Kg1 {[%clk 0:01:48.8]} 46... Rh8 {[%clk 0:01:24.2]} 47. Bb3 {[%clk 0:01:46.9]}
47... Bf4 {[%clk 0:01:22.7]} 48. Re1 {[%clk 0:01:45.9]} 48... Bf3 {[%clk
0:01:23.6]} 0-1

[Event "GrandPrix_29.05"]
[Site "Chess.com"]
[Date "2020.05.29"]
[Round "3"]
[White "TheEternalPatzer"]
[Black "Forking_U"]
[Result "1-0"]
[WhiteElo "2143"]
[BlackElo "1987"]
[TimeControl "600+2"]
[EndTime "10:25:07 PDT"]
[Termination "TheEternalPatzer won on time"]

1. c4 {[%clk 0:10:01.9]} 1... c5 {[%clk 0:09:57.3]} 2. Nc3 {[%clk 0:09:56.8]}
2... Nf6 {[%clk 0:09:58.3]} 3. e4 {[%clk 0:09:48.6]} 3... Nc6 {[%clk 0:09:57.9]}
4. Nf3 {[%clk 0:09:38.6]} 4... e5 {[%clk 0:08:54.2]} 5. d3 {[%clk 0:09:33.4]}
5... Be7 {[%clk 0:08:39]} 6. g3 {[%clk 0:08:35]} 6... d6 {[%clk 0:08:37.2]} 7.
h3 {[%clk 0:08:24.6]} 7... Bd7 {[%clk 0:06:57.2]} 8. Bg2 {[%clk 0:08:19.2]} 8...
Qc8 {[%clk 0:06:57.4]} 9. g4 {[%clk 0:07:16.7]} 9... h6 {[%clk 0:06:39.1]} 10.
Be3 {[%clk 0:05:16.8]} 10... Nh7 {[%clk 0:05:49]} 11. Nd5 {[%clk 0:05:08.1]}
11... Bd8 {[%clk 0:05:50.1]} 12. a3 {[%clk 0:04:09.1]} 12... Nf8 {[%clk
0:04:19]} 13. b4 {[%clk 0:04:02.4]} 13... Ne6 {[%clk 0:04:03.7]} 14. O-O {[%clk
0:03:36]} 14... h5 {[%clk 0:03:51.8]} 15. g5 {[%clk 0:03:31.6]} 15... h4 {[%clk
0:03:53.1]} 16. Kh2 {[%clk 0:03:01.1]} 16... Ne7 {[%clk 0:03:44.8]} 17. bxc5
{[%clk 0:02:49.2]} 17... Nxc5 {[%clk 0:03:08.3]} 18. d4 {[%clk 0:02:39.8]} 18...
exd4 {[%clk 0:01:50.4]} 19. Bxd4 {[%clk 0:02:28.1]} 19... Ne6 {[%clk 0:01:40]}
20. e5 {[%clk 0:02:15.7]} 20... Nxd4 {[%clk 0:01:33.3]} 21. Qxd4 {[%clk
0:02:10.5]} 21... Nc6 {[%clk 0:00:44.1]} 22. Qe3 {[%clk 0:01:59.5]} 22... dxe5
{[%clk 0:00:43]} 23. Nxe5 {[%clk 0:01:56.7]} 23... Qb8 {[%clk 0:00:44.1]} 24. f4
{[%clk 0:01:54.3]} 24... Nxe5 {[%clk 0:00:37.4]} 25. fxe5 {[%clk 0:01:54.5]}
25... Be6 {[%clk 0:00:20.8]} 26. Kh1 {[%clk 0:01:49.8]} 26... O-O {[%clk
0:00:15.1]} 27. Nf6+ {[%clk 0:01:44.1]} 27... gxf6 {[%clk 0:00:06.2]} 28. gxf6
{[%clk 0:01:44.1]} 28... Kh7 {[%clk 0:00:03.9]} 29. Rf4 {[%clk 0:01:41.4]} 1-0

[Event "GrandPrix_29.05"]
[Site "Chess.com"]
[Date "2020.05.29"]
[Round "3"]
[White "Guenplen"]
[Black "Cocolino12"]
[Result "1-0"]
[WhiteElo "2111"]
[BlackElo "2325"]
[TimeControl "600+2"]
[EndTime "10:25:10 PDT"]
[Termination "Guenplen won by resignation"]

1. d4 {[%clk 0:10:01.9]} 1... d5 {[%clk 0:10:00.3]} 2. Bf4 {[%clk 0:10:02.5]}
2... Nf6 {[%clk 0:10:00.3]} 3. e3 {[%clk 0:10:03.4]} 3... c5 {[%clk 0:10:01.3]}
4. c3 {[%clk 0:10:02.4]} 4... Nc6 {[%clk 0:10:02.6]} 5. Nd2 {[%clk 0:10:03.5]}
5... cxd4 {[%clk 0:09:50.6]} 6. exd4 {[%clk 0:10:05.4]} 6... Qb6 {[%clk
0:09:50.6]} 7. Qb3 {[%clk 0:10:03.9]} 7... Qxb3 {[%clk 0:09:48.2]} 8. axb3
{[%clk 0:10:04.7]} 8... Bf5 {[%clk 0:09:48.7]} 9. b4 {[%clk 0:10:04.7]} 9... e6
{[%clk 0:09:49.8]} 10. Ngf3 {[%clk 0:09:55.2]} 10... Be7 {[%clk 0:09:47.9]} 11.
b5 {[%clk 0:09:54.6]} 11... Nd8 {[%clk 0:09:46.3]} 12. b6 {[%clk 0:09:33.5]}
12... a6 {[%clk 0:09:40.1]} 13. Bb5+ {[%clk 0:09:29.3]} 13... Kf8 {[%clk
0:09:30.1]} 14. O-O {[%clk 0:09:18.2]} 14... h6 {[%clk 0:09:30.3]} 15. Nb3
{[%clk 0:09:13.5]} 15... Rc8 {[%clk 0:09:23.9]} 16. Ba4 {[%clk 0:09:13.5]} 16...
Nc6 {[%clk 0:09:16.1]} 17. Bc7 {[%clk 0:09:00.5]} 17... Nb8 {[%clk 0:08:25.1]}
18. Na5 {[%clk 0:08:53.8]} 18... Ne8 {[%clk 0:07:57.1]} 19. Bg3 {[%clk
0:08:41.6]} 19... Bd8 {[%clk 0:07:43.2]} 20. Nxb7 {[%clk 0:08:16.5]} 20... Bxb6
{[%clk 0:07:42]} 21. Ne5 {[%clk 0:08:04.7]} 21... f6 {[%clk 0:07:29.7]} 22. Nd7+
{[%clk 0:07:52.8]} 22... Nxd7 {[%clk 0:07:28.8]} 23. Bxd7 {[%clk 0:07:54.7]}
23... Ra8 {[%clk 0:07:27.5]} 24. Rfe1 {[%clk 0:07:33.8]} 24... Ke7 {[%clk
0:07:11.9]} 25. Bxe8 {[%clk 0:07:28.5]} 25... Rhxe8 {[%clk 0:07:09.6]} 26. Nd6
{[%clk 0:07:27.8]} 26... Bd3 {[%clk 0:07:02.4]} 27. Nxe8 {[%clk 0:07:27.4]}
27... Rxe8 {[%clk 0:06:58.6]} 28. Re3 {[%clk 0:07:22.1]} 28... Bb5 {[%clk
0:06:55.3]} 29. Rae1 {[%clk 0:06:57.1]} 29... Kd7 {[%clk 0:06:53.8]} 30. Rf3
{[%clk 0:06:50.7]} 30... a5 {[%clk 0:06:43.6]} 31. h4 {[%clk 0:06:49.4]} 31...
a4 {[%clk 0:06:40.5]} 32. h5 {[%clk 0:06:47.8]} 32... Ke7 {[%clk 0:06:38.2]} 33.
Bf4 {[%clk 0:06:42.8]} 33... Kf7 {[%clk 0:06:33.9]} 34. Bd6 {[%clk 0:06:40.2]}
34... Bc4 {[%clk 0:06:34.1]} 35. g4 {[%clk 0:06:31.3]} 35... Rd8 {[%clk
0:06:30.6]} 36. Ba3 {[%clk 0:06:31.3]} 36... Bc7 {[%clk 0:06:26.2]} 37. Kg2
{[%clk 0:06:25.3]} 37... Rb8 {[%clk 0:06:25.3]} 38. Bb4 {[%clk 0:06:14.4]} 38...
Bb3 {[%clk 0:06:24]} 39. Kh3 {[%clk 0:05:41.7]} 39... Bb6 {[%clk 0:06:21.8]} 40.
Ba3 {[%clk 0:05:34]} 40... Bc4 {[%clk 0:06:21.8]} 41. Rfe3 {[%clk 0:05:11.2]}
41... Re8 {[%clk 0:06:21.1]} 42. f4 {[%clk 0:05:08.5]} 42... Bc7 {[%clk
0:06:09.1]} 43. Rf3 {[%clk 0:04:57.2]} 43... Bb3 {[%clk 0:06:06.2]} 44. Rf2
{[%clk 0:04:58.1]} 44... Bc4 {[%clk 0:05:59.1]} 45. Re3 {[%clk 0:04:59]} 45...
Ba2 {[%clk 0:05:54.6]} 46. g5 {[%clk 0:04:49.9]} 46... hxg5 {[%clk 0:05:51]} 47.
fxg5 {[%clk 0:04:50.5]} 47... Bb1 {[%clk 0:05:46.9]} 48. g6+ {[%clk 0:04:43.1]}
48... Kg8 {[%clk 0:05:43.1]} 49. Kg2 {[%clk 0:03:22]} 49... Be4+ {[%clk
0:05:31.9]} 50. Kf1 {[%clk 0:03:22.5]} 50... Bb6 {[%clk 0:05:16]} 51. h6 {[%clk
0:03:03.7]} 51... gxh6 {[%clk 0:05:08.9]} 52. Rxf6 {[%clk 0:02:46.7]} 52... Kg7
{[%clk 0:05:09.5]} 53. Rf2 {[%clk 0:02:22.1]} 53... e5 {[%clk 0:05:00]} 54. Rg3
{[%clk 0:01:42.4]} 54... Bxg6 {[%clk 0:04:40.5]} 55. Bf8+ {[%clk 0:01:32.9]}
55... Rxf8 {[%clk 0:03:51.5]} 56. Rxf8 {[%clk 0:01:34.8]} 56... exd4 {[%clk
0:03:50.9]} 57. Rb8 {[%clk 0:01:19.4]} 57... Bc5 {[%clk 0:03:42.2]} 58. Rc8
{[%clk 0:01:12.4]} 58... dxc3 {[%clk 0:03:29.5]} 59. bxc3 {[%clk 0:01:07.4]}
59... Bd6 {[%clk 0:03:17.8]} 60. Rxg6+ {[%clk 0:01:07.9]} 60... Kxg6 {[%clk
0:03:17.2]} 61. Rc6 {[%clk 0:01:08.9]} 61... Kf5 {[%clk 0:03:14.6]} 62. Rxd6
{[%clk 0:01:10]} 62... Ke4 {[%clk 0:03:15.3]} 63. Ke2 {[%clk 0:01:09.6]} 63...
a3 {[%clk 0:03:13.3]} 64. Rxh6 {[%clk 0:01:09]} 1-0

[Event "GrandPrix_29.05"]
[Site "Chess.com"]
[Date "2020.05.29"]
[Round "3"]
[White "Mesropov_Konstantin"]
[Black "Haykos"]
[Result "0-1"]
[WhiteElo "1830"]
[BlackElo "2177"]
[TimeControl "600+2"]
[EndTime "10:25:16 PDT"]
[Termination "Haykos won by resignation"]

1. c4 {[%clk 0:10:01]} 1... e5 {[%clk 0:09:59.7]} 2. g3 {[%clk 0:09:56]} 2...
Nc6 {[%clk 0:09:58.8]} 3. Bg2 {[%clk 0:09:55.9]} 3... g6 {[%clk 0:09:59.2]} 4.
Nc3 {[%clk 0:09:56]} 4... Bg7 {[%clk 0:10:00.4]} 5. d3 {[%clk 0:09:57.3]} 5...
d6 {[%clk 0:10:02]} 6. Rb1 {[%clk 0:09:58]} 6... Be6 {[%clk 0:10:03.2]} 7. b4
{[%clk 0:09:57.1]} 7... Qd7 {[%clk 0:10:04.4]} 8. Nd5 {[%clk 0:09:50.6]} 8...
Nd8 {[%clk 0:09:55.8]} 9. b5 {[%clk 0:09:08.5]} 9... c6 {[%clk 0:09:37.6]} 10.
bxc6 {[%clk 0:09:07.8]} 10... bxc6 {[%clk 0:09:38]} 11. Nc3 {[%clk 0:08:57.8]}
11... Ne7 {[%clk 0:09:37.2]} 12. Nf3 {[%clk 0:08:27.7]} 12... Bh3 {[%clk
0:09:29.8]} 13. O-O {[%clk 0:08:18.8]} 13... Bxg2 {[%clk 0:09:27.6]} 14. Kxg2
{[%clk 0:08:20.7]} 14... O-O {[%clk 0:09:29]} 15. Bd2 {[%clk 0:07:34.9]} 15...
Ne6 {[%clk 0:09:25.8]} 16. Qc1 {[%clk 0:07:30.5]} 16... f5 {[%clk 0:09:19.4]}
17. Bh6 {[%clk 0:07:08.8]} 17... d5 {[%clk 0:09:09.2]} 18. Bxg7 {[%clk
0:07:07.5]} 18... Kxg7 {[%clk 0:09:07.3]} 19. Nxe5 {[%clk 0:06:56.3]} 19... Qd6
{[%clk 0:08:30.9]} 20. f4 {[%clk 0:06:05.4]} 20... d4 {[%clk 0:07:58.7]} 21. Nd1
{[%clk 0:05:48.3]} 21... g5 {[%clk 0:07:55]} 22. Nf2 {[%clk 0:05:15]} 22... Qc7
{[%clk 0:07:03.8]} 23. e3 {[%clk 0:04:25.1]} 23... c5 {[%clk 0:07:00.7]} 24. Qd2
{[%clk 0:03:50.5]} 24... Rae8 {[%clk 0:06:02.8]} 25. h4 {[%clk 0:02:29.2]} 25...
dxe3 {[%clk 0:05:20.3]} 26. Qxe3 {[%clk 0:02:28.9]} 26... gxf4 {[%clk
0:05:18.1]} 27. gxf4 {[%clk 0:02:29.6]} 27... Ng6 {[%clk 0:05:01.4]} 28. Nxg6
{[%clk 0:02:06.9]} 28... Qc6+ {[%clk 0:04:40.8]} 29. Qf3 {[%clk 0:01:53.3]}
29... Qxf3+ {[%clk 0:04:37]} 30. Kxf3 {[%clk 0:01:54.2]} 30... Nd4+ {[%clk
0:04:27.6]} 31. Kg2 {[%clk 0:01:50.8]} 31... Kxg6 {[%clk 0:04:09.3]} 32. Rfe1
{[%clk 0:01:40.2]} 32... Kh5 {[%clk 0:04:05.3]} 33. Rxe8 {[%clk 0:01:36]} 33...
Rxe8 {[%clk 0:04:06.8]} 34. Rb7 {[%clk 0:01:36.1]} 34... h6 {[%clk 0:04:00.7]}
35. Rxa7 {[%clk 0:01:35.1]} 35... Rg8+ {[%clk 0:03:32]} 36. Kf1 {[%clk
0:01:32.9]} 36... Kxh4 {[%clk 0:03:31.4]} 37. Ra5 {[%clk 0:01:09.2]} 37... Kg3
{[%clk 0:03:09.6]} 38. Rxc5 {[%clk 0:00:34.7]} 38... Rb8 {[%clk 0:03:07.9]} 39.
Re5 {[%clk 0:00:32.6]} 39... Rb2 {[%clk 0:02:49.5]} 40. Nd1 {[%clk 0:00:25.4]}
40... Rb1 {[%clk 0:02:41.1]} 41. Ke1 {[%clk 0:00:16]} 41... Nf3+ {[%clk
0:02:41.8]} 42. Ke2 {[%clk 0:00:17.2]} 42... Nxe5 {[%clk 0:02:40.6]} 43. fxe5
{[%clk 0:00:18.4]} 43... f4 {[%clk 0:02:41]} 44. e6 {[%clk 0:00:19.2]} 44... f3+
{[%clk 0:02:42.2]} 45. Kd2 {[%clk 0:00:17.3]} 45... Rxd1+ {[%clk 0:02:39.3]} 46.
Kxd1 {[%clk 0:00:16.9]} 46... f2 {[%clk 0:02:38.2]} 0-1